bitfinex/quotes_SOLUSD_20240915
["timestamp","ask_amount","ask_price","bid_price","bid_amount"]
[1726393902424,15.7608,136.79,136.73,18.78807017]
[1726393902623,15.7608,136.79,136.73,7.3135]
[1726393902933,7.3111,136.78,136.73,7.3135]
[1726393903553,7.3111,136.78,136.74,7.313]
[1726393906353,20.0,136.78,136.74,7.313]
[1726393911263,27.311,136.78,136.74,7.313]
[1726393913757,20.0,136.78,136.74,7.313]
[1726393925255,20.0,136.78,136.75,7.3126]
[1726393931885,15.7608,136.79,136.76,7.3119]
[1726393933787,6.055,136.8,136.76,7.3119]
[1726393933788,20.0,136.8,136.76,11.47457017]
[1726393934089,15.9567925,136.83,136.77,12.93455295]
[1726393934668,15.9567925,136.83,136.77,11.47457017]
[1726393935287,7.3095,136.81,136.76,7.3119]
[1726393935470,20.0,136.8,136.74,0.12549]
[1726393935671,20.0,136.8,136.75,12.94605427]
[1726393935873,20.0,136.8,136.75,7.3125]
[1726393937667,27.31,136.8,136.75,7.3125]
[1726393938673,23.0161,136.79,136.74,7.313]
[1726393939279,23.0161,136.79,136.68,15.7047466]
[1726393939280,51.088284,136.78,136.72,7.3138]
[1726393939682,7.3115,136.77,136.72,7.3138]
[1726393940016,7.3115,136.77,136.71,7.3146]
[1726393941072,7.3122,136.76,136.71,7.3146]
[1726393944764,7.3126,136.75,136.68,15.7047466]
[1726393944992,43.776884,136.78,136.69,31.85104017]
[1726393945295,43.776884,136.78,136.7,11.47457017]
[1726393946384,7.3121,136.76,136.71,7.3147]
[1726393951695,20.0,136.78,136.71,0.25098]
[1726393952000,20.0,136.78,136.71,11.72555017]
[1726393953392,15.7055,136.79,136.74,11.47457017]
[1726393953592,15.7055,136.79,136.75,11.47457017]
[1726393954687,15.7055,136.79,136.76,7.312]
[1726393967911,15.7055,136.79,136.74,11.47457017]
[1726393968112,15.7055,136.79,136.73,11.47457017]
[1726393968413,23.0164,136.79,136.73,18.78807017]
[1726393968599,23.0164,136.79,136.73,7.3135]
[1726393969494,23.0164,136.79,136.74,7.3128]
[1726393969910,15.7055,136.79,136.75,7.3121]
[1726393973395,23.016,136.79,136.74,7.313]
[1726393977016,20.0,136.78,136.72,11.60006017]
[1726393977918,27.3111,136.78,136.73,7.3132]
[1726393978117,20.0,136.78,136.73,7.3132]
[1726393978618,20.0,136.78,136.73,18.78777017]
[1726393979195,20.0,136.78,136.73,7.3132]
[1726393980802,27.3111,136.78,136.73,7.3132]
[1726393990923,27.3111,136.78,136.74,7.313]
[1726393995837,27.3111,136.78,136.75,5.63452893]
[1726393996035,7.312,136.77,136.72,11.47457017]
[1726393996215,7.3121,136.76,136.73,5.63452762]
[1726393996420,7.3121,136.76,136.74,5.63452762]
[1726393996633,7.3121,136.76,136.71,7.3146]
[1726393996845,7.3121,136.76,136.72,5.63488613]
[1726393996846,16.264,136.75,136.72,5.63488613]
[1726393997021,16.264,136.75,136.73,5.63488613]
[1726393997219,16.264,136.75,136.71,7.3146]
[1726393997425,16.264,136.75,136.72,5.63511522]
[1726393997740,16.264,136.75,136.73,5.63511522]
[1726393997945,16.264,136.75,136.74,5.63511522]
[1726393998850,16.264,136.75,136.71,7.3146]
[1726393999140,16.264,136.75,136.72,5.63535422]
[1726393999349,16.264,136.75,136.73,5.63535422]
[1726393999532,16.264,136.75,136.71,7.3146]
[1726393999738,16.264,136.75,136.72,5.6354671]
[1726394000036,16.264,136.75,136.73,5.6354671]
[1726394000340,16.264,136.75,136.71,7.3146]
[1726394000540,16.264,136.75,136.72,5.63546971]
[1726394000717,16.264,136.75,136.73,5.63532345]
[1726394000925,16.264,136.75,136.72,7.3141]
[1726394001145,16.264,136.75,136.73,5.63541513]
[1726394001349,16.264,136.75,136.72,7.3141]
[1726394001550,16.264,136.75,136.73,5.63541643]
[1726394001720,16.264,136.75,136.72,7.3141]
[1726394002028,16.264,136.75,136.73,5.63541513]
[1726394002231,16.264,136.75,136.72,7.3141]
[1726394002430,16.264,136.75,136.73,5.13541643]
[1726394002643,16.264,136.75,136.72,7.3141]
[1726394005852,16.264,136.75,136.72,11.47457017]
[1726394006050,16.264,136.75,136.73,7.3135]
[1726394006835,16.264,136.75,136.72,7.3141]
[1726394007236,16.264,136.75,136.73,7.3135]
[1726394011435,16.264,136.75,136.72,7.3141]
[1726394011951,16.264,136.75,136.73,7.3136]
[1726394022665,16.264,136.75,136.72,7.314]
[1726394028477,16.264,136.75,136.73,7.3135]
[1726394032475,16.264,136.75,136.72,7.314]
[1726394035979,16.264,136.75,136.73,7.3136]
[1726394046463,16.264,136.75,136.72,7.314]
[1726394054576,16.264,136.75,136.73,7.3136]
[1726394056575,23.8291629,136.78,136.74,7.313]
[1726394056774,20.0,136.78,136.74,7.313]
[1726394058186,20.3720629,136.79,136.77,7.3111]
[1726394058389,16.5429,136.79,136.76,7.3117]
[1726394059185,16.5429,136.79,136.75,7.3125]
[1726394060082,7.3117,136.77,136.72,7.3137]
[1726394060304,50.098184,136.78,136.71,11.47457017]
[1726394060480,50.098184,136.78,136.7,31.60006017]
[1726394061295,57.409184,136.78,136.73,7.3136]
[1726394062705,7.3127,136.75,136.7,7.3148]
[1726394063007,60.284184,136.75,136.71,7.3147]
[1726394063798,36.5073,136.75,136.72,7.3142]
[1726394065206,36.5073,136.75,136.68,0.2512925]
[1726394065516,36.5073,136.75,136.68,11.72586267]
[1726394065816,36.5073,136.75,136.71,7.3147]
[1726394066513,36.5073,136.75,136.69,7.3154]
[1726394068010,36.5073,136.75,136.7,7.3151]
[1726394068431,20.0,136.73,136.7,7.3151]
[1726394068908,20.0,136.73,136.71,7.3142]
[1726394069095,20.0,136.74,136.71,7.3142]
[1726394069813,20.0,136.74,136.71,18.78877017]
[1726394070512,20.0,136.74,136.71,11.47457017]
[1726394070698,20.0,136.74,136.7,11.47457017]
[1726394070898,20.0,136.74,136.69,11.47457017]
[1726394071111,26.1323,136.74,136.69,18.79027017]
[1726394071416,23.776884,136.73,136.69,7.3157]
[1726394071599,20.0,136.72,136.69,7.3157]
[1726394072113,20.0,136.72,136.68,19.04206267]
[1726394072311,20.0,136.72,136.68,7.5674925]
[1726394073124,20.0,136.72,136.68,19.04206267]
[1726394073494,20.0,136.72,136.68,7.5674925]
[1726394073709,20.0,136.72,136.68,19.04206267]
[1726394074425,20.0,136.73,136.7,11.47457017]
[1726394074905,20.0,136.73,136.7,18.78967017]
[1726394076724,20.0,136.73,136.71,11.47457017]
[1726394078598,20.0,136.73,136.7,18.78967017]
[1726394090048,20.0,136.73,136.7,7.3151]
[1726394090835,20.0,136.73,136.71,7.3146]
[1726394091541,20.0,136.73,136.72,7.3142]
[1726394091737,16.5073,136.75,136.72,18.78877017]
[1726394091953,20.0,136.74,136.73,7.3136]
[1726394092530,16.5073,136.75,136.73,7.3136]
[1726394094031,20.0,136.74,136.73,7.3136]
[1726394100853,20.0,136.76,136.71,7.3144]
[1726394103461,20.0,136.76,136.72,7.3139]
[1726394104938,20.0,136.74,136.7,7.3147]
[1726394105262,20.0,136.74,136.71,7.3147]
[1726394113669,20.0,136.76,136.71,7.3147]
[1726394115157,23.8291629,136.76,136.71,7.3147]
[1726394115764,20.0,136.76,136.71,7.3147]
[1726394116156,20.0,136.74,136.68,11.72586267]
[1726394117266,20.0,136.74,136.7,7.3148]
[1726394118247,35.7135,136.74,136.7,7.3148]
[1726394118756,35.7135,136.74,136.71,7.3146]
[1726394123183,35.7135,136.74,136.68,0.2512925]
[1726394123471,20.0,136.72,136.68,0.2512925]
[1726394126853,20.0,136.7,136.68,0.2512925]
[1726394128471,20.0,136.7,136.68,7.5674925]
[1726394131273,43.776884,136.69,136.68,0.2512925]
[1726394132475,20.0,136.69,136.68,0.2512925]
[1726394132678,20.0,136.69,136.68,7.5675925]
[1726394132903,20.0,136.72,136.69,7.3156]
[1726394133183,23.0125,136.73,136.7,7.3152]
[1726394134383,20.0,136.72,136.7,7.3152]
[1726394137087,20.0,136.72,136.71,7.3147]
[1726394141799,20.0,136.72,136.7,7.3151]
[1726394143974,20.0,136.72,136.69,7.3157]
[1726394149274,20.0,136.72,136.7,7.3152]
[1726394160391,20.0,136.72,136.68,7.5675925]
[1726394164212,20.0,136.7,136.68,0.2512925]
[1726394166103,43.902374,136.69,136.68,0.2512925]
[1726394166408,43.776884,136.69,136.68,0.2512925]
[1726394168900,20.0,136.69,136.68,0.2512925]
[1726394169101,20.0,136.69,136.68,7.5675925]
[1726394169598,25.8721629,136.73,136.69,7.3155]
[1726394170117,20.0,136.72,136.7,7.3151]
[1726394172712,3.8291629,136.75,136.71,11.47457017]
[1726394172905,7.64459403,136.76,136.71,11.47457017]
[1726394172906,3.8291629,136.76,136.71,11.47457017]
[1726394173105,3.8291629,136.76,136.71,41.47457017]
[1726394173517,26.0243629,136.77,136.71,41.47457017]
[1726394173727,26.0243629,136.77,136.71,30.0]
[1726394174416,20.0,136.76,136.73,7.3134]
[1726394178324,20.0,136.76,136.74,7.313]
[1726394184530,20.0,136.76,136.73,7.3135]
[1726394189532,20.0,136.76,136.75,7.3126]
[1726394189855,3.8291629,136.8,136.76,7.3118]
[1726394190324,3.8291629,136.8,136.77,7.3115]
[1726394190515,20.1011629,136.81,136.77,7.3115]
[1726394191914,20.0,136.8,136.77,7.3115]
[1726394193024,20.0,136.8,136.76,7.3119]
[1726394210959,11.72515203,136.83,136.79,7.3104]
[1726394211166,7.89598913,136.83,136.73,20.25098]
[1726394211464,0.2512925,136.83,136.75,30.0]
[1726394212333,24.0281765,136.83,136.75,30.0]
[1726394212536,20.0,136.82,136.75,30.0]
[1726394216270,23.776884,136.81,136.75,30.0]
[1726394222047,23.776884,136.81,136.73,20.25098]
[1726394222249,23.776884,136.81,136.74,30.0]
[1726394228889,23.776884,136.81,136.73,20.25098]
[1726394231856,23.776884,136.81,136.74,30.0]
[1726394233177,23.776884,136.81,136.73,20.25098]
[1726394234575,23.776884,136.81,136.73,20.12549]
[1726394234576,43.2832469,136.81,136.73,20.12549]
[1726394237482,39.454084,136.81,136.73,20.12549]
[1726394238386,30.4306629,136.82,136.75,0.12549]
[1726394238387,3.8291629,136.82,136.75,0.12549]
[1726394238562,4.0804554,136.83,136.75,0.12549]
[1726394240477,4.0804554,136.83,136.76,0.12549]
[1726394240687,4.0804554,136.83,136.77,0.12549]
[1726394241184,0.2512925,136.83,136.77,0.12549]
[1726394241693,4.0804554,136.83,136.77,0.12549]
[1726394246586,4.0804554,136.83,136.76,0.25098]
[1726394246783,4.0804554,136.83,136.75,0.25098]
[1726394246959,4.0804554,136.83,136.76,0.12549]
[1726394248171,0.2512925,136.83,136.76,0.12549]
[1726394249488,0.2512925,136.83,136.77,0.25098]
[1726394250394,0.2512925,136.83,136.78,0.12549]
[1726394252373,0.2512925,136.83,136.77,0.25098]
[1726394253386,4.0804554,136.83,136.77,0.25098]
[1726394255180,4.0804554,136.83,136.76,22.5369]
[1726394258569,3.8291629,136.82,136.76,22.5369]
[1726394268914,4.0804554,136.83,136.76,22.5369]
[1726394270215,3.8291629,136.82,136.76,22.5369]
[1726394270811,3.8291629,136.82,136.77,0.25098]
[1726394271107,4.0804554,136.83,136.77,0.25098]
[1726394282722,4.0804554,136.83,136.76,22.5369]
[1726394283033,3.8291629,136.82,136.76,22.5369]
[1726394287617,0.2512925,136.83,136.76,22.5369]
[1726394287618,4.0804554,136.83,136.76,22.5369]
[1726394288131,3.8291629,136.82,136.76,22.5369]
[1726394288927,4.0804554,136.83,136.76,22.5369]
[1726394289240,3.8291629,136.82,136.76,22.5369]
[1726394295041,3.8291629,136.82,136.77,0.12549]
[1726394295236,0.2512925,136.83,136.79,0.25098]
[1726394295726,0.2512925,136.83,136.79,1.71274504]
[1726394297039,0.2512925,136.83,136.79,0.25098]
[1726394297947,0.2512925,136.83,136.78,15.0623]
[1726394303853,0.2512925,136.83,136.79,0.12549]
[1726394304231,0.2512925,136.83,136.78,15.0623]
[1726394307043,24.0281765,136.83,136.78,15.0623]
[1726394310675,0.2512925,136.83,136.78,15.0623]
[1726394335064,24.0281765,136.83,136.78,15.0623]
[1726394335270,27.8573394,136.83,136.78,15.0623]
[1726394354905,20.0,136.82,136.78,15.0623]
[1726394357980,4.0804554,136.83,136.78,15.0623]
[1726394358389,4.0804554,136.83,136.79,0.12549]
[1726394358697,4.0804554,136.83,136.79,1.58730869]
[1726394358698,0.2512925,136.83,136.79,1.58730869]
[1726394359098,0.2512925,136.83,136.79,0.25098]
[1726394359523,0.2512925,136.83,136.79,0.12549]
[1726394364606,0.2512925,136.83,136.78,15.0623]
[1726394368916,4.0804554,136.83,136.78,15.0623]
[1726394371696,0.2512925,136.83,136.78,15.0623]
[1726394375922,24.0281765,136.83,136.78,15.0623]
[1726394376223,20.0,136.82,136.78,15.0623]
[1726394379320,23.8291629,136.82,136.78,15.0623]
[1726394379524,20.0,136.82,136.78,15.0623]
[1726394380026,23.8291629,136.82,136.78,15.0623]
[1726394383323,20.0,136.82,136.78,15.0623]
[1726394397938,20.0,136.8,136.76,6.2314]
[1726394399033,20.0,136.8,136.74,16.637]
[1726394400137,23.776884,136.81,136.74,16.637]
[1726394400515,20.0,136.8,136.74,16.637]
[1726394401022,23.776884,136.79,136.74,16.637]
[1726394402339,20.0,136.78,136.7,22.8943]
[1726394402640,31.1402629,136.78,136.7,22.8943]
[1726394402827,23.776884,136.77,136.7,22.8943]
[1726394403028,20.0,136.76,136.7,22.8943]
[1726394403919,23.776884,136.77,136.7,22.8943]
[1726394404318,20.0,136.76,136.7,22.8943]
[1726394418455,20.0,136.74,136.7,22.8943]
[1726394418766,23.776884,136.75,136.7,22.8943]
[1726394418930,20.0,136.74,136.7,22.8943]
[1726394419130,20.0,136.76,136.7,22.8943]
[1726394419534,23.776884,136.75,136.7,22.8943]
[1726394419757,20.0,136.76,136.7,22.8943]
[1726394433071,23.776884,136.75,136.7,22.8943]
[1726394433872,20.0,136.74,136.7,22.8943]
[1726394438478,23.776884,136.73,136.68,0.2512925]
[1726394438784,20.0,136.72,136.68,0.2512925]
[1726394438990,23.776884,136.71,136.68,0.2512925]
[1726394441995,20.0,136.73,136.68,0.2512925]
[1726394449704,23.776884,136.72,136.68,0.2512925]
[1726394449889,20.0,136.71,136.68,0.2512925]
[1726394452179,20.0,136.74,136.68,0.2512925]
[1726394452479,20.0,136.72,136.68,0.2512925]
[1726394452978,20.0,136.74,136.68,0.2512925]
[1726394453180,20.0,136.75,136.68,0.2512925]
[1726394453593,20.0,136.73,136.68,0.2512925]
[1726394457884,20.0,136.75,136.68,0.2512925]
[1726394458213,20.0,136.73,136.68,0.2512925]
[1726394458513,3.8291629,136.77,136.69,0.12549]
[1726394458687,23.776884,136.76,136.7,6.4542]
[1726394458886,31.088384,136.77,136.7,6.4542]
[1726394459986,20.0,136.76,136.7,6.4542]
[1726394468431,20.0,136.74,136.7,6.4542]
[1726394469023,20.0,136.76,136.7,6.4542]
[1726394469233,20.0,136.74,136.7,6.4542]
[1726394469926,20.0,136.76,136.7,6.4542]
[1726394470111,20.0,136.74,136.7,6.4542]
[1726394472627,20.0,136.77,136.7,23.0861]
[1726394476613,20.0,136.75,136.7,23.0861]
[1726394479729,20.0,136.77,136.7,23.0861]
[1726394480229,20.0,136.75,136.7,23.0861]
[1726394481038,23.8291629,136.78,136.71,1.4627815]
[1726394481332,23.8291629,136.78,136.7,23.0861]
[1726394490543,20.0,136.78,136.71,0.12549]
[1726394495344,11.1396629,136.79,136.74,6.2221]
[1726394495345,3.8291629,136.79,136.74,6.2221]
[1726394495557,23.8291629,136.8,136.74,6.2221]
[1726394497141,3.8291629,136.8,136.74,6.2221]
[1726394498655,3.8291629,136.8,136.75,16.36688]
[1726394498863,3.8291629,136.82,136.76,1.46215693]
[1726394499353,4.0804554,136.83,136.77,0.12549]
[1726394500057,4.0804554,136.83,136.76,0.12549]
[1726394500436,0.2512925,136.83,136.77,0.12549]
[1726394500637,0.2512925,136.83,136.78,6.2221]
[1726394501046,0.2512925,136.83,136.75,22.338]
[1726394501237,4.0804554,136.83,136.75,22.338]
[1726394501439,23.776884,136.82,136.75,22.338]
[1726394503569,24.0281765,136.83,136.75,22.338]
[1726394503727,20.0,136.82,136.75,22.338]
[1726394508038,23.776884,136.81,136.75,22.338]
[1726394508260,20.0,136.8,136.75,22.338]
[1726394517267,23.776884,136.79,136.75,22.338]
[1726394523459,20.0,136.78,136.75,22.338]
[1726394528182,20.0,136.78,136.75,16.1159]
[1726394529685,20.0,136.78,136.72,21.8134]
[1726394542165,20.0,136.76,136.72,21.8134]
[1726394547672,23.776884,136.78,136.72,21.8134]
[1726394547997,20.0,136.77,136.72,21.8134]
[1726394548781,23.776884,136.79,136.73,1.46254817]
[1726394548997,20.0,136.78,136.73,1.46254817]
[1726394550278,20.0,136.78,136.72,21.8134]
[1726394550503,20.0,136.78,136.73,1.46255113]
[1726394550673,20.0,136.78,136.72,21.8134]
[1726394550873,3.8291629,136.8,136.73,0.12549]
[1726394551100,20.0,136.79,136.73,0.12549]
[1726394553173,20.0,136.79,136.73,0.25098]
[1726394553386,20.0,136.79,136.74,15.7639]
[1726394554712,3.8291629,136.8,136.74,15.7639]
[1726394554913,23.8291629,136.81,136.74,15.7639]
[1726394556609,23.8291629,136.81,136.75,6.2596]
[1726394557196,3.8291629,136.81,136.75,6.2596]
[1726394562820,3.8291629,136.82,136.75,6.2596]
[1726394563895,3.8291629,136.82,136.75,7.72175397]
[1726394564507,3.8291629,136.82,136.77,16.3277]
[1726394564711,4.0804554,136.83,136.77,16.3277]
[1726394565021,0.2512925,136.83,136.78,6.63329]
[1726394594034,0.2512925,136.83,136.79,35.2459]
[1726394594356,0.2512925,136.83,136.79,15.2459]
[1726394595162,0.2512925,136.83,136.8,5.84323562]
[1726394595350,0.2512925,136.83,136.79,15.2459]
[1726394595650,0.2512925,136.83,136.8,5.84340548]
[1726394595841,0.2512925,136.83,136.79,15.2459]
[1726394596042,0.2512925,136.83,136.8,5.84323562]
[1726394596242,0.2512925,136.83,136.79,15.2459]
[1726394596442,0.2512925,136.83,136.8,5.84323562]
[1726394596649,0.2512925,136.83,136.79,15.2459]
[1726394606761,0.2512925,136.83,136.8,1.46188724]
[1726394608660,0.2512925,136.83,136.8,1.46180103]
[1726394609263,0.2512925,136.83,136.81,1.58714678]
[1726394609566,0.2512925,136.83,136.81,1.71263678]
[1726394610156,0.2512925,136.83,136.81,0.25098]
[1726394610475,0.2512925,136.83,136.82,6.16749]
[1726394611077,0.2512925,136.83,136.82,21.22349]
[1726394611276,0.2512925,136.83,136.82,21.34898]
[1726394611458,0.2512925,136.83,136.82,41.34898]
[1726394615772,0.2512925,136.83,136.82,21.098]
[1726394615978,0.2512925,136.83,136.82,15.056]
[1726394616276,0.2512925,136.83,136.78,6.042]
[1726394616573,0.2512925,136.83,136.79,50.0]
[1726394617755,0.2512925,136.83,136.8,0.12549]
[1726394618283,0.2512925,136.83,136.79,30.0]
[1726394618580,0.2512925,136.83,136.79,0.12549]
[1726394619775,0.2512925,136.83,136.79,20.12549]
[1726394629089,0.2512925,136.83,136.8,1.46163421]
[1726394629974,0.2512925,136.83,136.79,20.12549]
[1726394630693,0.2512925,136.83,136.8,0.12549]
[1726394630900,0.2512925,136.83,136.81,0.12549]
[1726394640700,0.2512925,136.83,136.8,0.12549]
[1726394640905,0.2512925,136.83,136.8,0.25098]
[1726394642599,0.2512925,136.83,136.76,20.0]
[1726394642793,0.2512925,136.83,136.77,30.12549]
[1726394642993,0.2512925,136.83,136.78,20.0]
[1726394643403,0.2512925,136.83,136.79,0.12549]
[1726394643813,0.2512925,136.83,136.78,20.0]
[1726394645207,0.2512925,136.83,136.77,0.25098]
[1726394645421,0.2512925,136.83,136.78,0.12549]
[1726394646204,0.2512925,136.83,136.77,0.25098]
[1726394647393,0.2512925,136.83,136.78,20.0]
[1726394649294,0.2512925,136.83,136.79,0.12549]
[1726394654194,0.2512925,136.83,136.78,0.37647]
[1726394655389,0.2512925,136.83,136.77,0.25098]
[1726394655803,0.2512925,136.83,136.77,20.25098]
[1726394656802,0.2512925,136.83,136.78,5.84234363]
[1726394657010,0.2512925,136.83,136.77,20.25098]
[1726394657011,0.2512925,136.83,136.79,5.84234363]
[1726394657183,0.2512925,136.83,136.8,5.84234363]
[1726394657386,0.2512925,136.83,136.81,5.84234363]
[1726394657598,0.2512925,136.83,136.82,5.84234363]
[1726394660420,0.2512925,136.83,136.82,5.84257347]
[1726394663814,0.2512925,136.83,136.82,5.84251438]
[1726394666995,0.2512925,136.83,136.76,0.25098]
[1726394667191,0.2512925,136.83,136.82,5.84257347]
[1726394675105,0.2512925,136.83,136.75,20.0]
[1726394675106,60.1761665,136.83,136.75,20.0]
[1726394675417,60.1761665,136.83,136.76,5.84360267]
[1726394675631,67.4844665,136.83,136.77,5.84360267]
[1726394675922,67.4844665,136.83,136.78,5.84360267]
[1726394676102,67.4844665,136.83,136.79,5.84360267]
[1726394676303,67.4844665,136.83,136.74,0.12549]
[1726394676497,0.12549,136.82,136.75,5.79762609]
[1726394676725,20.0,136.81,136.76,5.79762609]
[1726394677036,31.462254,136.82,136.77,5.79762609]
[1726394677037,20.0,136.78,136.77,5.79762609]
[1726394677322,20.0,136.78,136.68,21.4767925]
[1726394677517,20.0,136.78,136.69,35.7991778]
[1726394677817,20.0,136.78,136.7,5.7991778]
[1726394677998,20.0,136.78,136.71,5.7991778]
[1726394678201,20.0,136.78,136.72,5.7991778]
[1726394678400,20.0,136.78,136.73,5.7991778]
[1726394678614,20.0,136.78,136.74,5.7991778]
[1726394678822,20.0,136.78,136.75,5.7991778]
[1726394679001,20.0,136.78,136.69,20.25098]
[1726394679322,20.0,136.78,136.71,20.25098]
[1726394679499,20.0,136.78,136.72,5.7989719]
[1726394679701,20.0,136.78,136.73,5.7989719]
[1726394680001,20.0,136.78,136.74,5.7989719]
[1726394680200,20.0,136.78,136.75,5.7989719]
[1726394680400,20.0,136.78,136.71,20.25098]
[1726394680401,22.4022,136.8,136.71,20.25098]
[1726394680607,20.0,136.79,136.72,1.58781748]
[1726394680823,20.0,136.79,136.73,5.92421448]
[1726394681024,20.0,136.79,136.74,7.26106602]
[1726394681227,20.0,136.79,136.75,5.79872448]
[1726394681403,20.0,136.79,136.76,5.79872448]
[1726394681603,20.0,136.79,136.74,1.46234154]
[1726394681816,20.0,136.79,136.75,5.79827583]
[1726394682121,20.0,136.79,136.76,5.79827583]
[1726394682324,20.0,136.79,136.73,0.12549]
[1726394682507,20.0,136.79,136.74,5.79844965]
[1726394682708,20.0,136.79,136.75,5.79844965]
[1726394682915,20.0,136.79,136.7,0.12549]
[1726394683113,20.0,136.79,136.72,20.12549]
[1726394683421,20.0,136.79,136.72,20.0]
[1726394683919,20.0,136.79,136.71,0.12549]
[1726394696317,16.5613,136.77,136.71,0.12549]
[1726394696823,6.437,136.76,136.71,0.12549]
[1726394697337,6.437,136.76,136.7,0.25098]
[1726394699436,6.437,136.76,136.68,0.2512925]
[1726394699661,6.437,136.76,136.69,20.25098]
[1726394700720,6.437,136.76,136.68,9.91820257]
[1726394700722,23.776884,136.75,136.68,9.91820257]
[1726394700942,16.5613,136.74,136.68,9.91820257]
[1726394701128,16.5613,136.74,136.68,0.2512925]
[1726394703828,6.3061,136.72,136.68,0.2512925]
[1726394708734,23.776884,136.71,136.68,0.2512925]
[1726394709454,16.4197,136.7,136.68,0.2512925]
[1726394712053,23.776884,136.69,136.68,0.2512925]
[1726394715458,43.776884,136.69,136.68,0.2512925]
[1726394731262,44.153354,136.69,136.68,0.2512925]
[1726394732155,51.469154,136.69,136.68,0.2512925]
[1726394732743,44.153354,136.69,136.68,0.2512925]
[1726394735263,51.469154,136.69,136.68,0.2512925]
[1726394743379,44.153354,136.69,136.68,0.2512925]
[1726394746764,44.153354,136.69,136.64,0.2512925]
[1726394746965,23.735,136.7,136.64,0.2512925]
[1726394746966,20.25098,136.66,136.64,0.2512925]
[1726394747165,23.776884,136.65,136.64,0.2512925]
[1726394751393,23.902374,136.65,136.64,0.2512925]
[1726394755374,43.902374,136.65,136.64,0.2512925]
[1726394756188,59.313364,136.65,136.64,0.2512925]
[1726394757478,59.313364,136.65,136.56,19.7538775]
[1726394759494,23.776884,136.63,136.56,19.7538775]
[1726394759709,23.776884,136.63,136.54,24.74841007]
[1726394759710,23.776884,136.63,136.55,9.62549]
[1726394759878,23.776884,136.63,136.54,24.87390007]
[1726394760084,23.776884,136.63,136.55,0.12549]
[1726394760398,23.776884,136.63,136.54,24.74841007]
[1726394762099,23.776884,136.63,136.55,20.0]
[1726394764183,23.776884,136.63,136.56,0.25098]
[1726394765098,23.776884,136.63,136.55,20.0]
[1726394765995,23.776884,136.61,136.55,20.0]
[1726394767884,23.776884,136.61,136.54,15.0815]
[1726394771104,42.1502,136.6,136.53,0.2106653]
[1726394771312,23.902374,136.59,136.53,0.2106653]
[1726394773994,0.25098,136.58,136.53,0.2106653]
[1726394774290,0.12549,136.57,136.53,0.2106653]
[1726394776026,0.12549,136.58,136.53,0.2106653]
[1726394776310,23.776884,136.59,136.53,0.2106653]
[1726394778500,0.12549,136.58,136.53,0.2106653]
[1726394778703,0.25098,136.58,136.53,0.2106653]
[1726394779012,23.776884,136.59,136.53,0.2106653]
[1726394783532,23.776884,136.57,136.53,0.2106653]
[1726394788129,23.776884,136.55,136.53,0.2106653]
[1726394799813,23.776884,136.55,136.48,0.3084622]
[1726394799814,20.12549,136.54,136.46,19.5191275]
[1726394800141,23.776884,136.53,136.46,19.5191275]
[1726394802737,0.12549,136.54,136.46,19.5191275]
[1726394802924,23.902374,136.54,136.46,19.5191275]
[1726394805437,23.902374,136.54,136.46,23.31991289]
[1726394805838,0.12549,136.53,136.46,23.31991289]
[1726394806055,0.25098,136.53,136.46,19.5191275]
[1726394806537,23.776884,136.54,136.46,19.5191275]
[1726394806730,23.776884,136.54,136.46,23.32002922]
[1726394807241,23.776884,136.54,136.46,19.5191275]
[1726394812158,23.776884,136.54,136.46,23.3200282]
[1726394812331,23.776884,136.54,136.47,5.80928634]
[1726394812836,23.776884,136.54,136.46,19.5191275]